[Event "Titled Tuesday Blitz August 15 Late 2023"]
[White "The_Straightforward_Rook"]
[Black "Ai, Evan"]
[BlackFideId "2094770"]
[WhiteElo "2408"]
[BlackElo "2276"]
[Result "0-1"]
[Round "11"]
[TimeControl "180+1"]
[Date "2023.08.15"]
[WhiteClock "0:01:51"]
[BlackClock "0:01:33"]
[Board "82"]

1. d4 {[%clk 0:03:00]}  Nf6 {[%clk 0:02:59]} 2. c4 {[%clk 0:03:00]}  e6 {[%clk 0:02:58]} 3. Nf3 {[%clk 0:03:00]}  d5 {[%clk 0:02:48]} 4. cxd5 {[%clk 0:03:01]}  exd5 {[%clk 0:02:49]} 5. Nc3 {[%clk 0:03:01]}  Bb4 {[%clk 0:02:47]} 6. Bf4 {[%clk 0:03:00]}  O-O {[%clk 0:02:38]} 7. e3 {[%clk 0:03:00]}  Nbd7 {[%clk 0:02:37]} 8. Bd3 {[%clk 0:02:58]}  c5 {[%clk 0:02:24]} 9. O-O {[%clk 0:02:56]}  b6 {[%clk 0:02:23]} 10. a3 {[%clk 0:02:51]}  Bxc3 {[%clk 0:02:22]} 11. bxc3 {[%clk 0:02:52]}  Bb7 {[%clk 0:02:22]} 12. a4 {[%clk 0:02:48]}  a5 {[%clk 0:02:21]} 13. Rb1 {[%clk 0:02:46]}  Qe7 {[%clk 0:02:19]} 14. Bb5 {[%clk 0:02:40]}  Rac8 {[%clk 0:02:14]} 15. Ne5 {[%clk 0:02:39]}  Nxe5 {[%clk 0:02:13]} 16. Bxe5 {[%clk 0:02:39]}  Ne4 {[%clk 0:02:13]} 17. Qe1 {[%clk 0:02:23]}  f6 {[%clk 0:02:11]} 18. Bf4 {[%clk 0:02:19]}  cxd4 {[%clk 0:01:47]} 19. cxd4 {[%clk 0:02:20]}  Nc3 {[%clk 0:01:43]} 20. Rb2 {[%clk 0:02:17]}  Nxb5 {[%clk 0:01:41]} 21. Rxb5 {[%clk 0:02:17]}  Ba6 {[%clk 0:01:41]} 22. Rxb6 {[%clk 0:02:17]}  Bxf1 {[%clk 0:01:40]} 23. Kxf1 {[%clk 0:02:02]}  Qa3 {[%clk 0:01:35]} 24. Qxa5 {[%clk 0:01:53]}  Qd3+ {[%clk 0:01:33]} 25. Ke1 {[%clk 0:01:51]}  Rc1# {[%clk 0:01:33]} 0-1


[Site "https://www.chess.com"]

[Event "Titled Tuesday Blitz August 15 Late 2023"]
[White "Vaglio Munoz, Jaime"]
[Black "Wafa, Shrook"]
[WhiteFideId "6500145"]
[BlackFideId "10609970"]
[WhiteElo "2253"]
[BlackElo "2406"]
[Result "0-1"]
[Round "11"]
[TimeControl "180+1"]
[Date "2023.08.15"]
[WhiteClock "0:00:00"]
[BlackClock "0:01:33"]
[Board "83"]

1. Nf3 {[%clk 0:01:58]}  d5 {[%clk 0:02:59]} 2. c4 {[%clk 0:01:57]}  c6 {[%clk 0:02:59]} 3. b3 {[%clk 0:01:57]}  Nf6 {[%clk 0:02:59]} 4. Bb2 {[%clk 0:01:58]}  e6 {[%clk 0:02:59]} 5. g3 {[%clk 0:01:58]}  Be7 {[%clk 0:02:59]} 6. Bg2 {[%clk 0:01:58]}  O-O {[%clk 0:02:59]} 7. O-O {[%clk 0:01:59]}  Nbd7 {[%clk 0:03:00]} 8. d3 {[%clk 0:01:59]}  Re8 {[%clk 0:02:59]} 9. Re1 {[%clk 0:02:00]}  Bd6 {[%clk 0:02:57]} 10. e4 {[%clk 0:02:00]}  e5 {[%clk 0:02:42]} 11. Nc3 {[%clk 0:01:59]}  d4 {[%clk 0:02:42]} 12. Ne2 {[%clk 0:01:57]}  Nf8 {[%clk 0:02:39]} 13. a3 {[%clk 0:01:55]}  a5 {[%clk 0:02:38]} 14. Rc1 {[%clk 0:01:55]}  c5 {[%clk 0:02:36]} 15. Rc2 {[%clk 0:01:53]}  Bd7 {[%clk 0:02:37]} 16. h3 {[%clk 0:01:50]}  a4 {[%clk 0:02:36]} 17. Rd2 {[%clk 0:01:46]}  axb3 {[%clk 0:02:35]} 18. Qxb3 {[%clk 0:01:46]}  Ba4 {[%clk 0:02:33]} 19. Qa2 {[%clk 0:01:45]}  Ne6 {[%clk 0:02:31]} 20. Bc1 {[%clk 0:01:40]}  b5 {[%clk 0:02:29]} 21. cxb5 {[%clk 0:01:39]}  Bxb5 {[%clk 0:02:29]} 22. Rdd1 {[%clk 0:01:35]}  Qa5 {[%clk 0:02:28]} 23. g4 {[%clk 0:01:32]}  Qa6 {[%clk 0:02:27]} 24. Qd2 {[%clk 0:01:27]}  Rec8 {[%clk 0:02:23]} 25. Bf1 {[%clk 0:01:26]}  Ba4 {[%clk 0:02:20]} 26. Ng3 {[%clk 0:01:25]}  Bxd1 {[%clk 0:02:20]} 27. Qxd1 {[%clk 0:01:25]}  c4 {[%clk 0:02:14]} 28. dxc4 {[%clk 0:01:22]}  Qa5 {[%clk 0:02:12]} 29. g5 {[%clk 0:01:16]}  Nd7 {[%clk 0:02:11]} 30. Nf5 {[%clk 0:01:16]}  Bxa3 {[%clk 0:02:08]} 31. Bd2 {[%clk 0:01:09]}  Bb4 {[%clk 0:02:08]} 32. Bd3 {[%clk 0:01:08]}  Bxd2 {[%clk 0:02:07]} 33. Nxd2 {[%clk 0:01:05]}  Qc3 {[%clk 0:02:04]} 34. Ne7+ {[%clk 0:01:05]}  Kh8 {[%clk 0:02:03]} 35. Nxc8 {[%clk 0:01:05]}  Rxc8 {[%clk 0:02:03]} 36. Nb1 {[%clk 0:01:03]}  Qb2 {[%clk 0:02:01]} 37. Re2 {[%clk 0:01:01]}  Qb4 {[%clk 0:02:01]} 38. h4 {[%clk 0:01:01]}  Ndc5 {[%clk 0:02:00]} 39. Rd2 {[%clk 0:00:52]}  g6 {[%clk 0:01:54]} 40. f3 {[%clk 0:00:47]}  Rb8 {[%clk 0:01:53]} 41. Bc2 {[%clk 0:00:20]}  d3 {[%clk 0:01:52]} 42. Rxd3 {[%clk 0:00:20]}  Nxd3 {[%clk 0:01:50]} 43. Bxd3 {[%clk 0:00:21]}  Nd4 {[%clk 0:01:50]} 44. Kg2 {[%clk 0:00:20]}  Qb2+ {[%clk 0:01:49]} 45. Kg3 {[%clk 0:00:20]}  Kg7 {[%clk 0:01:46]} 46. h5 {[%clk 0:00:19]}  gxh5 {[%clk 0:01:45]} 47. f4 {[%clk 0:00:19]}  exf4+ {[%clk 0:01:44]} 48. Kh3 {[%clk 0:00:14]}  Ne6 {[%clk 0:01:43]} 49. Qxh5 {[%clk 0:00:12]}  Qf2 {[%clk 0:01:39]} 50. Qg4 {[%clk 0:00:00]}  Rb3 {[%clk 0:01:33]} 0-1


[Site "https://www.chess.com"]

[Event "Titled Tuesday Blitz August 15 Late 2023"]
[White "LuxLinster"]
[Black "Melikhov, Evgeny V."]
[BlackFideId "4122046"]
[WhiteElo "2264"]
[BlackElo "2399"]
[Result "0-1"]
[Round "11"]
[TimeControl "180+1"]
[Date "2023.08.15"]
[WhiteClock "0:00:00"]
[BlackClock "0:00:54"]
[Board "84"]

1. d4 {[%clk 0:02:57]}  Nf6 {[%clk 0:02:59]} 2. c4 {[%clk 0:02:57]}  e6 {[%clk 0:02:59]} 3. g3 {[%clk 0:02:57]}  d5 {[%clk 0:02:59]} 4. Nf3 {[%clk 0:02:57]}  dxc4 {[%clk 0:02:59]} 5. Bg2 {[%clk 0:02:57]}  Nc6 {[%clk 0:02:58]} 6. O-O {[%clk 0:02:56]}  Rb8 {[%clk 0:02:58]} 7. e3 {[%clk 0:02:53]}  b5 {[%clk 0:02:57]} 8. b3 {[%clk 0:02:48]}  cxb3 {[%clk 0:02:55]} 9. axb3 {[%clk 0:02:49]}  Bd6 {[%clk 0:02:54]} 10. Nc3 {[%clk 0:02:04]}  O-O {[%clk 0:02:51]} 11. Ng5 {[%clk 0:01:59]}  Bd7 {[%clk 0:02:37]} 12. Bb2 {[%clk 0:01:56]}  Rb6 {[%clk 0:02:26]} 13. Nce4 {[%clk 0:01:51]}  Nxe4 {[%clk 0:02:24]} 14. Nxe4 {[%clk 0:01:50]}  a6 {[%clk 0:02:09]} 15. d5 {[%clk 0:01:34]}  exd5 {[%clk 0:02:00]} 16. Nxd6 {[%clk 0:01:34]}  cxd6 {[%clk 0:01:56]} 17. Bxd5 {[%clk 0:01:33]}  Be6 {[%clk 0:01:47]} 18. Bg2 {[%clk 0:01:07]}  d5 {[%clk 0:01:45]} 19. Qd2 {[%clk 0:00:58]}  Qd7 {[%clk 0:01:43]} 20. Rfd1 {[%clk 0:00:54]}  Rd8 {[%clk 0:01:41]} 21. Rac1 {[%clk 0:00:40]}  f6 {[%clk 0:01:26]} 22. h4 {[%clk 0:00:34]}  Ne5 {[%clk 0:01:17]} 23. h5 {[%clk 0:00:25]}  h6 {[%clk 0:01:15]} 24. Bd4 {[%clk 0:00:20]}  Rc6 {[%clk 0:01:15]} 25. Rxc6 {[%clk 0:00:20]}  Qxc6 {[%clk 0:01:15]} 26. Rc1 {[%clk 0:00:19]}  Qd7 {[%clk 0:01:12]} 27. b4 {[%clk 0:00:15]}  Bh3 {[%clk 0:01:11]} 28. Rc5 {[%clk 0:00:08]}  Bxg2 {[%clk 0:01:08]} 29. Kxg2 {[%clk 0:00:09]}  Qg4 {[%clk 0:01:07]} 30. Bxe5 {[%clk 0:00:07]}  fxe5 {[%clk 0:01:06]} 31. f3 {[%clk 0:00:07]}  Qd7 {[%clk 0:01:02]} 32. Qc2 {[%clk 0:00:05]}  d4 {[%clk 0:01:02]} 33. Rc7 {[%clk 0:00:03]}  Qd5 {[%clk 0:00:59]} 34. Qg6 {[%clk 0:00:03]}  Rd7 {[%clk 0:00:57]} 35. Qe8+ {[%clk 0:00:01]}  Kh7 {[%clk 0:00:57]} 36. Rxd7 {[%clk 0:00:01]}  Qa2+ {[%clk 0:00:55]} 37. Kh3 {[%clk 0:00:00]}  Qb1 {[%clk 0:00:54]} 0-1


[Site "https://www.chess.com"]

[Event "Titled Tuesday Blitz August 15 Late 2023"]
[White "Alexikov, Alexander"]
[Black "Fernandez Garcia, Gumersindo"]
[WhiteFideId "14103958"]
[BlackFideId "24516740"]
[WhiteElo "2237"]
[BlackElo "2392"]
[Result "0-1"]
[Round "11"]
[TimeControl "180+1"]
[Date "2023.08.15"]
[WhiteClock "0:00:00"]
[BlackClock "0:00:05"]
[Board "85"]

1. e4 {[%clk 0:03:00]}  c5 {[%clk 0:02:56]} 2. Nf3 {[%clk 0:03:00]}  e6 {[%clk 0:02:56]} 3. d4 {[%clk 0:02:58]}  cxd4 {[%clk 0:02:57]} 4. Nxd4 {[%clk 0:02:57]}  Nf6 {[%clk 0:02:57]} 5. Nc3 {[%clk 0:02:55]}  Nc6 {[%clk 0:02:57]} 6. Be2 {[%clk 0:02:53]}  Bb4 {[%clk 0:02:57]} 7. Nxc6 {[%clk 0:02:49]}  bxc6 {[%clk 0:02:56]} 8. e5 {[%clk 0:02:47]}  Nd5 {[%clk 0:02:57]} 9. Qd4 {[%clk 0:02:44]}  c5 {[%clk 0:02:26]} 10. Qd3 {[%clk 0:02:42]}  a5 {[%clk 0:02:23]} 11. Bd2 {[%clk 0:02:38]}  Ba6 {[%clk 0:02:21]} 12. Qg3 {[%clk 0:02:38]}  Bxc3 {[%clk 0:01:42]} 13. bxc3 {[%clk 0:02:32]}  Kf8 {[%clk 0:01:08]} 14. Bxa6 {[%clk 0:02:04]}  Rxa6 {[%clk 0:01:08]} 15. Rb1 {[%clk 0:02:03]}  h5 {[%clk 0:01:07]} 16. O-O {[%clk 0:01:48]}  h4 {[%clk 0:01:06]} 17. Qf3 {[%clk 0:01:32]}  h3 {[%clk 0:01:04]} 18. g3 {[%clk 0:01:30]}  Ra8 {[%clk 0:00:39]} 19. Rb5 {[%clk 0:01:26]}  Rc8 {[%clk 0:00:36]} 20. c4 {[%clk 0:01:19]}  Ne7 {[%clk 0:00:36]} 21. Bxa5 {[%clk 0:01:09]}  Qe8 {[%clk 0:00:33]} 22. Bb6 {[%clk 0:01:09]}  Ng6 {[%clk 0:00:32]} 23. Bxc5+ {[%clk 0:01:06]}  Kg8 {[%clk 0:00:33]} 24. Re1 {[%clk 0:01:04]}  Rh6 {[%clk 0:00:18]} 25. a4 {[%clk 0:01:01]}  Ne7 {[%clk 0:00:15]} 26. a5 {[%clk 0:00:58]}  Nc6 {[%clk 0:00:15]} 27. a6 {[%clk 0:00:56]}  Ra8 {[%clk 0:00:15]} 28. Rb6 {[%clk 0:00:44]}  Rg6 {[%clk 0:00:13]} 29. Qe4 {[%clk 0:00:40]}  Qc8 {[%clk 0:00:13]} 30. Reb1 {[%clk 0:00:36]}  Kh7 {[%clk 0:00:11]} 31. Bd6 {[%clk 0:00:30]}  Kh6 {[%clk 0:00:04]} 32. Ra1 {[%clk 0:00:24]}  Kh7 {[%clk 0:00:04]} 33. a7 {[%clk 0:00:22]}  Qg8 {[%clk 0:00:01]} 34. Rb8 {[%clk 0:00:19]}  Rxb8 {[%clk 0:00:02]} 35. axb8=Q {[%clk 0:00:17]}  Nxb8 {[%clk 0:00:02]} 36. Ra8 {[%clk 0:00:14]}  Qc8 {[%clk 0:00:03]} 37. c5 {[%clk 0:00:11]}  Qc6 {[%clk 0:00:02]} 38. Qxc6 {[%clk 0:00:10]}  Nxc6 {[%clk 0:00:02]} 39. Ra4 {[%clk 0:00:08]}  Rg5 {[%clk 0:00:02]} 40. Rh4+ {[%clk 0:00:07]}  Kg6 {[%clk 0:00:03]} 41. f4 {[%clk 0:00:06]}  Rh5 {[%clk 0:00:04]} 42. Rxh5 {[%clk 0:00:06]}  Kxh5 {[%clk 0:00:04]} 43. Kf2 {[%clk 0:00:05]}  Kg4 {[%clk 0:00:04]} 44. c3 {[%clk 0:00:05]}  g6 {[%clk 0:00:04]} 45. Bf8 {[%clk 0:00:04]}  Na5 {[%clk 0:00:04]} 46. Bd6 {[%clk 0:00:03]}  Nc4 {[%clk 0:00:04]} 47. Ke2 {[%clk 0:00:02]}  Kf5 {[%clk 0:00:04]} 48. Kd3 {[%clk 0:00:01]}  Na5 {[%clk 0:00:05]} 49. c4 {[%clk 0:00:00]}  Kg4 {[%clk 0:00:05]} 0-1


[Site "https://www.chess.com"]

[Event "Titled Tuesday Blitz August 15 Late 2023"]
[White "rikchessmx"]
[Black "ExchangeAB"]
[WhiteElo "2282"]
[BlackElo "2399"]
[Result "0-1"]
[Round "11"]
[TimeControl "180+1"]
[Date "2023.08.15"]
[WhiteClock "0:00:53"]
[BlackClock "0:00:42"]
[Board "91"]

1. e4 {[%clk 0:03:00]}  c6 {[%clk 0:03:00]} 2. d4 {[%clk 0:03:00]}  d5 {[%clk 0:03:00]} 3. Nc3 {[%clk 0:03:01]}  dxe4 {[%clk 0:03:00]} 4. Nxe4 {[%clk 0:03:01]}  Nf6 {[%clk 0:03:01]} 5. Ng5 {[%clk 0:03:01]}  Bf5 {[%clk 0:03:00]} 6. N1f3 {[%clk 0:03:00]}  e6 {[%clk 0:03:00]} 7. Ne5 {[%clk 0:03:00]}  Bg6 {[%clk 0:02:59]} 8. Bd3 {[%clk 0:03:00]}  Qxd4 {[%clk 0:02:41]} 9. Qe2 {[%clk 0:02:59]}  Bd6 {[%clk 0:02:13]} 10. Bxg6 {[%clk 0:02:48]}  Qxe5 {[%clk 0:02:00]} 11. Qxe5 {[%clk 0:02:38]}  Bxe5 {[%clk 0:02:00]} 12. Bxf7+ {[%clk 0:02:38]}  Ke7 {[%clk 0:01:58]} 13. Bxe6 {[%clk 0:02:29]}  h6 {[%clk 0:01:54]} 14. Nf7 {[%clk 0:02:29]}  Re8 {[%clk 0:01:15]} 15. Nxe5 {[%clk 0:02:26]}  Kxe6 {[%clk 0:01:16]} 16. f4 {[%clk 0:02:23]}  Nbd7 {[%clk 0:01:16]} 17. Bd2 {[%clk 0:02:07]}  Nxe5 {[%clk 0:01:14]} 18. fxe5 {[%clk 0:02:07]}  Kxe5 {[%clk 0:01:14]} 19. O-O-O {[%clk 0:02:07]}  Kf5 {[%clk 0:01:10]} 20. Bc3 {[%clk 0:02:03]}  Rad8 {[%clk 0:01:08]} 21. Rhf1+ {[%clk 0:02:01]}  Kg6 {[%clk 0:01:08]} 22. Rxd8 {[%clk 0:01:59]}  Rxd8 {[%clk 0:01:08]} 23. Bxf6 {[%clk 0:01:57]}  gxf6 {[%clk 0:01:09]} 24. Rd1 {[%clk 0:01:56]}  Re8 {[%clk 0:01:08]} 25. Kd2 {[%clk 0:01:50]}  Re5 {[%clk 0:01:05]} 26. Re1 {[%clk 0:01:47]}  Rb5 {[%clk 0:01:04]} 27. b3 {[%clk 0:01:45]}  Rg5 {[%clk 0:01:03]} 28. Re2 {[%clk 0:01:44]}  Kf7 {[%clk 0:01:03]} 29. c4 {[%clk 0:01:43]}  Rf5 {[%clk 0:01:02]} 30. Kc3 {[%clk 0:01:42]}  Ra5 {[%clk 0:01:02]} 31. Kb4 {[%clk 0:01:41]}  Rf5 {[%clk 0:01:01]} 32. g4 {[%clk 0:01:26]}  Rg5 {[%clk 0:01:01]} 33. h3 {[%clk 0:01:25]}  h5 {[%clk 0:00:58]} 34. gxh5 {[%clk 0:01:24]}  Rxh5 {[%clk 0:00:59]} 35. Re3 {[%clk 0:01:24]}  f5 {[%clk 0:00:59]} 36. Kc3 {[%clk 0:01:23]}  Kf6 {[%clk 0:00:59]} 37. Kd4 {[%clk 0:01:23]}  f4 {[%clk 0:00:58]} 38. Rf3 {[%clk 0:01:22]}  Kf5 {[%clk 0:00:58]} 39. b4 {[%clk 0:01:20]}  Rh7 {[%clk 0:00:56]} 40. a4 {[%clk 0:01:14]}  Rd7+ {[%clk 0:00:55]} 41. Kc3 {[%clk 0:01:14]}  Ke4 {[%clk 0:00:55]} 42. Rf1 {[%clk 0:01:14]}  f3 {[%clk 0:00:56]} 43. b5 {[%clk 0:01:11]}  Ke3 {[%clk 0:00:54]} 44. Re1+ {[%clk 0:01:10]}  Kf2 {[%clk 0:00:54]} 45. Re6 {[%clk 0:01:08]}  cxb5 {[%clk 0:00:53]} 46. axb5 {[%clk 0:01:08]}  Kg2 {[%clk 0:00:52]} 47. Rg6+ {[%clk 0:01:07]}  Kxh3 {[%clk 0:00:52]} 48. Rh6+ {[%clk 0:01:07]}  Kg2 {[%clk 0:00:52]} 49. Rg6+ {[%clk 0:01:08]}  Kf1 {[%clk 0:00:53]} 50. c5 {[%clk 0:01:07]}  f2 {[%clk 0:00:51]} 51. c6 {[%clk 0:01:07]}  bxc6 {[%clk 0:00:51]} 52. bxc6 {[%clk 0:01:07]}  Re7 {[%clk 0:00:51]} 53. Kd4 {[%clk 0:01:00]}  Ke1 {[%clk 0:00:49]} 54. Kd5 {[%clk 0:00:57]}  f1=Q {[%clk 0:00:47]} 55. Kd6 {[%clk 0:00:55]}  Qe2 {[%clk 0:00:42]} 56. Rg1+ {[%clk 0:00:54]}  Kf2 {[%clk 0:00:42]} 57. Rg6 {[%clk 0:00:53]}  Qe5# {[%clk 0:00:42]} 0-1


[Site "https://www.chess.com"]

[Event "Titled Tuesday Blitz August 15 Late 2023"]
[White "Vifleemskaia, Svetlana"]
[Black "Saucey, Michel"]
[WhiteFideId "4129490"]
[BlackFideId "601845"]
[WhiteElo "2345"]
[BlackElo "2262"]
[Result "1-0"]
[Round "11"]
[TimeControl "180+1"]
[Date "2023.08.15"]
[WhiteClock "0:00:58"]
[BlackClock "0:00:00"]
[Board "92"]

1. d4 {[%clk 0:02:52]}  d5 {[%clk 0:02:59]} 2. c4 {[%clk 0:02:53]}  e6 {[%clk 0:02:58]} 3. Nc3 {[%clk 0:02:52]}  Nf6 {[%clk 0:02:58]} 4. cxd5 {[%clk 0:02:53]}  exd5 {[%clk 0:02:57]} 5. Bg5 {[%clk 0:02:53]}  c6 {[%clk 0:02:57]} 6. e3 {[%clk 0:02:53]}  Be7 {[%clk 0:02:57]} 7. Bd3 {[%clk 0:02:52]}  O-O {[%clk 0:02:56]} 8. Qc2 {[%clk 0:02:52]}  h6 {[%clk 0:02:55]} 9. Bf4 {[%clk 0:02:51]}  Re8 {[%clk 0:02:54]} 10. Nf3 {[%clk 0:02:48]}  Nbd7 {[%clk 0:02:52]} 11. h3 {[%clk 0:02:48]}  Nf8 {[%clk 0:02:51]} 12. O-O {[%clk 0:02:48]}  Ne6 {[%clk 0:02:34]} 13. Bh2 {[%clk 0:02:43]}  Ng5 {[%clk 0:02:29]} 14. Ne5 {[%clk 0:02:41]}  Nge4 {[%clk 0:02:12]} 15. Nxe4 {[%clk 0:02:34]}  dxe4 {[%clk 0:02:11]} 16. Bc4 {[%clk 0:02:16]}  Rf8 {[%clk 0:02:08]} 17. a4 {[%clk 0:02:08]}  a5 {[%clk 0:01:30]} 18. Qb3 {[%clk 0:02:05]}  Qe8 {[%clk 0:01:30]} 19. f3 {[%clk 0:01:54]}  exf3 {[%clk 0:01:24]} 20. Rxf3 {[%clk 0:01:55]}  Bb4 {[%clk 0:01:15]} 21. Raf1 {[%clk 0:01:53]}  b5 {[%clk 0:01:11]} 22. Bd3 {[%clk 0:01:28]}  Be6 {[%clk 0:01:09]} 23. Qc2 {[%clk 0:01:28]}  Bd5 {[%clk 0:00:34]} 24. Rxf6 {[%clk 0:01:26]}  gxf6 {[%clk 0:00:33]} 25. Rxf6 {[%clk 0:01:24]}  Kg7 {[%clk 0:00:12]} 26. Qf2 {[%clk 0:01:19]}  Rh8 {[%clk 0:00:08]} 27. Rf5 {[%clk 0:01:05]}  Bd6 {[%clk 0:00:00]} 28. Qg3+ {[%clk 0:00:58]} 1-0


[Site "https://www.chess.com"]

[Event "Titled Tuesday Blitz August 15 Late 2023"]
[White "De Souza, Cristiano Gomes"]
[Black "rionelG"]
[WhiteFideId "2151758"]
[WhiteElo "2252"]
[BlackElo "2341"]
[Result "0-1"]
[Round "11"]
[TimeControl "180+1"]
[Date "2023.08.15"]
[WhiteClock "0:00:22"]
[BlackClock "0:00:12"]
[Board "93"]

1. d4 {[%clk 0:02:13]}  Nf6 {[%clk 0:02:13]} 2. c4 {[%clk 0:02:09]}  g6 {[%clk 0:02:13]} 3. Nc3 {[%clk 0:02:07]}  Bg7 {[%clk 0:02:13]} 4. e4 {[%clk 0:02:07]}  O-O {[%clk 0:02:13]} 5. Nf3 {[%clk 0:02:06]}  d6 {[%clk 0:02:14]} 6. Be2 {[%clk 0:02:06]}  Na6 {[%clk 0:02:09]} 7. O-O {[%clk 0:02:07]}  e5 {[%clk 0:02:09]} 8. Be3 {[%clk 0:02:04]}  Ng4 {[%clk 0:02:06]} 9. Bg5 {[%clk 0:02:03]}  Qe8 {[%clk 0:02:06]} 10. dxe5 {[%clk 0:02:01]}  dxe5 {[%clk 0:02:00]} 11. Nd2 {[%clk 0:01:59]}  f6 {[%clk 0:01:38]} 12. Bh4 {[%clk 0:01:53]}  Nh6 {[%clk 0:01:37]} 13. f3 {[%clk 0:01:52]}  Nf7 {[%clk 0:01:31]} 14. a3 {[%clk 0:01:50]}  c6 {[%clk 0:01:31]} 15. b4 {[%clk 0:01:49]}  Nc7 {[%clk 0:01:31]} 16. c5 {[%clk 0:01:48]}  Ne6 {[%clk 0:01:30]} 17. Nc4 {[%clk 0:01:42]}  Nd4 {[%clk 0:01:09]} 18. Bf2 {[%clk 0:01:42]}  f5 {[%clk 0:01:09]} 19. Bd3 {[%clk 0:01:38]}  Be6 {[%clk 0:01:05]} 20. Na5 {[%clk 0:01:35]}  Qe7 {[%clk 0:00:59]} 21. Bc4 {[%clk 0:01:30]}  Rad8 {[%clk 0:00:58]} 22. Bxe6 {[%clk 0:01:28]}  Qxe6 {[%clk 0:00:57]} 23. Nxb7 {[%clk 0:01:24]}  Rd7 {[%clk 0:00:50]} 24. Na5 {[%clk 0:01:21]}  Ng5 {[%clk 0:00:49]} 25. Qc1 {[%clk 0:01:04]}  Bh6 {[%clk 0:00:40]} 26. Qb2 {[%clk 0:01:01]}  fxe4 {[%clk 0:00:23]} 27. Nxe4 {[%clk 0:01:01]}  Ngxf3+ {[%clk 0:00:15]} 28. gxf3 {[%clk 0:00:58]}  Nxf3+ {[%clk 0:00:16]} 29. Kh1 {[%clk 0:00:57]}  Qh3 {[%clk 0:00:16]} 30. Bg3 {[%clk 0:00:56]}  Rdf7 {[%clk 0:00:14]} 31. Qg2 {[%clk 0:00:54]}  Qh5 {[%clk 0:00:13]} 32. Nd6 {[%clk 0:00:51]}  Nxh2 {[%clk 0:00:12]} 33. Rxf7 {[%clk 0:00:49]}  Nf3+ {[%clk 0:00:12]} 34. Bh2 {[%clk 0:00:47]}  Rxf7 {[%clk 0:00:11]} 35. Nxf7 {[%clk 0:00:45]}  Bf4 {[%clk 0:00:12]} 36. Rf1 {[%clk 0:00:43]}  Nxh2 {[%clk 0:00:12]} 37. Rxf4 {[%clk 0:00:22]}  Nf3+ {[%clk 0:00:12]} 0-1


[Site "https://www.chess.com"]

[Event "Titled Tuesday Blitz August 15 Late 2023"]
[White "Verony64"]
[Black "Gerbelli Neto, Eduardo"]
[BlackFideId "2103281"]
[WhiteElo "2147"]
[BlackElo "2315"]
[Result "1-0"]
[Round "11"]
[TimeControl "180+1"]
[Date "2023.08.15"]
[WhiteClock "0:00:07"]
[BlackClock "0:00:03"]
[Board "95"]

1. e4 {[%clk 0:02:58]}  e5 {[%clk 0:02:59]} 2. Nc3 {[%clk 0:02:57]}  Nf6 {[%clk 0:02:59]} 3. d3 {[%clk 0:02:57]}  Nc6 {[%clk 0:02:58]} 4. g3 {[%clk 0:02:58]}  d5 {[%clk 0:02:57]} 5. exd5 {[%clk 0:02:55]}  Nxd5 {[%clk 0:02:58]} 6. Bg2 {[%clk 0:02:55]}  Be6 {[%clk 0:02:58]} 7. Nge2 {[%clk 0:02:54]}  Be7 {[%clk 0:02:52]} 8. O-O {[%clk 0:02:53]}  O-O {[%clk 0:02:52]} 9. Be3 {[%clk 0:02:49]}  Nxe3 {[%clk 0:02:47]} 10. fxe3 {[%clk 0:02:50]}  Bg5 {[%clk 0:02:42]} 11. Qd2 {[%clk 0:02:38]}  Nd4 {[%clk 0:02:35]} 12. Nd1 {[%clk 0:02:38]}  c6 {[%clk 0:02:26]} 13. c3 {[%clk 0:02:38]}  Nf5 {[%clk 0:02:21]} 14. Be4 {[%clk 0:02:31]}  Nd6 {[%clk 0:02:16]} 15. Bg2 {[%clk 0:02:25]}  Qb6 {[%clk 0:02:10]} 16. h4 {[%clk 0:02:20]}  Bh6 {[%clk 0:02:08]} 17. Kh2 {[%clk 0:02:20]}  Rad8 {[%clk 0:02:01]} 18. d4 {[%clk 0:02:08]}  Nf5 {[%clk 0:01:43]} 19. Qd3 {[%clk 0:01:58]}  g6 {[%clk 0:01:39]} 20. e4 {[%clk 0:01:49]}  Ne7 {[%clk 0:01:37]} 21. Qf3 {[%clk 0:01:45]}  Bg7 {[%clk 0:01:33]} 22. Rb1 {[%clk 0:01:20]}  exd4 {[%clk 0:01:28]} 23. cxd4 {[%clk 0:01:14]}  Bxd4 {[%clk 0:01:28]} 24. Nf4 {[%clk 0:01:07]}  Bc4 {[%clk 0:01:20]} 25. Re1 {[%clk 0:01:03]}  Bxa2 {[%clk 0:01:03]} 26. Ra1 {[%clk 0:00:56]}  Be6 {[%clk 0:01:02]} 27. Ne3 {[%clk 0:00:47]}  Bxe3 {[%clk 0:00:47]} 28. Rxe3 {[%clk 0:00:45]}  Qxb2 {[%clk 0:00:44]} 29. Rxa7 {[%clk 0:00:44]}  Nc8 {[%clk 0:00:39]} 30. Re2 {[%clk 0:00:39]}  Qd4 {[%clk 0:00:34]} 31. Rxb7 {[%clk 0:00:37]}  Nd6 {[%clk 0:00:32]} 32. Rbb2 {[%clk 0:00:31]}  Nc4 {[%clk 0:00:31]} 33. Rb4 {[%clk 0:00:28]}  Ne5 {[%clk 0:00:28]} 34. Qa3 {[%clk 0:00:23]}  Ng4+ {[%clk 0:00:26]} 35. Kh3 {[%clk 0:00:18]}  Qg1 {[%clk 0:00:25]} 36. Nxe6 {[%clk 0:00:18]}  fxe6 {[%clk 0:00:17]} 37. Kxg4 {[%clk 0:00:18]}  Qh2 {[%clk 0:00:14]} 38. e5 {[%clk 0:00:10]}  h5+ {[%clk 0:00:14]} 39. Kg5 {[%clk 0:00:11]}  Kg7 {[%clk 0:00:14]} 40. Rf4 {[%clk 0:00:08]}  Qg1 {[%clk 0:00:08]} 41. Qe7+ {[%clk 0:00:08]}  Kg8 {[%clk 0:00:07]} 42. Kxg6 {[%clk 0:00:08]}  Qb6 {[%clk 0:00:03]} 43. Qg7# {[%clk 0:00:07]} 1-0


[Site "https://www.chess.com"]

[Event "Titled Tuesday Blitz August 15 Late 2023"]
[White "Garmendiarov"]
[Black "Joubert, Dantelle"]
[BlackFideId "14310813"]
[WhiteElo "2285"]
[BlackElo "2072"]
[Result "1-0"]
[Round "11"]
[TimeControl "180+1"]
[Date "2023.08.15"]
[WhiteClock "0:01:03"]
[BlackClock "0:01:00"]
[Board "96"]

1. e4 {[%clk 0:03:00]}  c5 {[%clk 0:02:57]} 2. Nf3 {[%clk 0:03:01]}  d6 {[%clk 0:02:55]} 3. d4 {[%clk 0:03:01]}  cxd4 {[%clk 0:02:56]} 4. Nxd4 {[%clk 0:03:02]}  Nf6 {[%clk 0:02:56]} 5. Nc3 {[%clk 0:03:03]}  g6 {[%clk 0:02:56]} 6. Be3 {[%clk 0:03:02]}  Bg7 {[%clk 0:02:57]} 7. f3 {[%clk 0:03:03]}  O-O {[%clk 0:02:57]} 8. Qd2 {[%clk 0:03:04]}  Nc6 {[%clk 0:02:56]} 9. O-O-O {[%clk 0:03:05]}  d5 {[%clk 0:02:55]} 10. exd5 {[%clk 0:03:05]}  Nxd5 {[%clk 0:02:55]} 11. Nxc6 {[%clk 0:03:06]}  bxc6 {[%clk 0:02:54]} 12. Bd4 {[%clk 0:03:06]}  e5 {[%clk 0:02:54]} 13. Bc5 {[%clk 0:03:07]}  Be6 {[%clk 0:02:49]} 14. Ne4 {[%clk 0:03:05]}  Re8 {[%clk 0:02:48]} 15. Bc4 {[%clk 0:03:05]}  Qh4 {[%clk 0:02:30]} 16. g3 {[%clk 0:02:58]}  Qh5 {[%clk 0:02:28]} 17. g4 {[%clk 0:02:42]}  Qh4 {[%clk 0:02:26]} 18. Bf2 {[%clk 0:02:34]}  Qh3 {[%clk 0:02:20]} 19. Ng5 {[%clk 0:02:19]}  Qh6 {[%clk 0:02:17]} 20. h4 {[%clk 0:01:57]}  Rab8 {[%clk 0:01:58]} 21. Bb3 {[%clk 0:01:22]}  a5 {[%clk 0:01:44]} 22. a4 {[%clk 0:01:20]}  e4 {[%clk 0:01:36]} 23. fxe4 {[%clk 0:01:14]}  Bxb2+ {[%clk 0:01:22]} 24. Kxb2 {[%clk 0:01:09]}  Nb4 {[%clk 0:01:10]} 25. Nxe6 {[%clk 0:01:04]}  Rxe6 {[%clk 0:01:00]} 26. Qxh6 {[%clk 0:01:03]} 1-0


[Site "https://www.chess.com"]